[Event "Titled Tuesday Blitz November 08 Late 2022"]
[White "O`Gorman, Tom"]
[Black "Yano, William Jorge Froes"]
[WhiteFideId "2508249"]
[BlackFideId "2112949"]
[WhiteElo "2271"]
[BlackElo "2122"]
[Result "1-0"]
[Round "02"]
[TimeControl "180+1"]
[Date "2022.11.09"]
[WhiteClock "0:01:13"]
[BlackClock "0:00:16"]

1. e4 {[%clk 0:03:00]}  e6 {[%clk 0:02:59]} 2. Nf3 {[%clk 0:03:01]}  d5 {[%clk 0:03:00]} 3. Nc3 {[%clk 0:03:00]}  Nf6 {[%clk 0:02:59]} 4. e5 {[%clk 0:02:59]}  Nfd7 {[%clk 0:03:00]} 5. d4 {[%clk 0:03:00]}  c5 {[%clk 0:03:00]} 6. dxc5 {[%clk 0:03:00]}  Nc6 {[%clk 0:02:59]} 7. Bf4 {[%clk 0:03:00]}  Nxc5 {[%clk 0:02:55]} 8. Qd2 {[%clk 0:02:58]}  Be7 {[%clk 0:02:51]} 9. h4 {[%clk 0:02:54]}  a6 {[%clk 0:02:49]} 10. Be2 {[%clk 0:02:51]}  Bd7 {[%clk 0:02:48]} 11. O-O-O {[%clk 0:02:49]}  Qa5 {[%clk 0:02:46]} 12. Kb1 {[%clk 0:02:47]}  O-O-O {[%clk 0:02:35]} 13. Rh3 {[%clk 0:02:45]}  Kb8 {[%clk 0:02:10]} 14. Nxd5 {[%clk 0:02:34]}  exd5 {[%clk 0:01:53]} 15. e6+ {[%clk 0:02:31]}  Kc8 {[%clk 0:01:40]} 16. exd7+ {[%clk 0:02:26]}  Rxd7 {[%clk 0:01:27]} 17. Qxa5 {[%clk 0:02:23]}  Nxa5 {[%clk 0:01:27]} 18. Ne5 {[%clk 0:02:24]}  Ne6 {[%clk 0:01:22]} 19. Bh2 {[%clk 0:02:18]}  Rhd8 {[%clk 0:01:08]} 20. Nxd7 {[%clk 0:02:09]}  Rxd7 {[%clk 0:01:08]} 21. Rhd3 {[%clk 0:02:03]}  d4 {[%clk 0:00:55]} 22. Bg4 {[%clk 0:02:01]}  Nc6 {[%clk 0:00:54]} 23. h5 {[%clk 0:01:56]}  g6 {[%clk 0:00:53]} 24. hxg6 {[%clk 0:01:56]}  hxg6 {[%clk 0:00:54]} 25. c3 {[%clk 0:01:56]}  f5 {[%clk 0:00:54]} 26. Bf3 {[%clk 0:01:55]}  Bf6 {[%clk 0:00:53]} 27. Re1 {[%clk 0:01:48]}  Nc5 {[%clk 0:00:49]} 28. Rdd1 {[%clk 0:01:45]}  d3 {[%clk 0:00:40]} 29. Re8+ {[%clk 0:01:41]}  Nd8 {[%clk 0:00:36]} 30. Be5 {[%clk 0:01:28]}  Bxe5 {[%clk 0:00:20]} 31. Rxe5 {[%clk 0:01:29]}  b6 {[%clk 0:00:20]} 32. Rd5 {[%clk 0:01:27]}  Nde6 {[%clk 0:00:18]} 33. Rxd7 {[%clk 0:01:23]}  Kxd7 {[%clk 0:00:18]} 34. b4 {[%clk 0:01:23]}  Na4 {[%clk 0:00:18]} 35. Rxd3+ {[%clk 0:01:23]}  Ke7 {[%clk 0:00:19]} 36. Kc2 {[%clk 0:01:23]}  b5 {[%clk 0:00:19]} 37. Bb7 {[%clk 0:01:23]}  Nf4 {[%clk 0:00:17]} 38. Re3+ {[%clk 0:01:22]}  Kd6 {[%clk 0:00:17]} 39. g3 {[%clk 0:01:22]}  Nd5 {[%clk 0:00:16]} 40. Rd3 {[%clk 0:01:21]}  Nb6 {[%clk 0:00:17]} 41. Kb3 {[%clk 0:01:18]}  Ke5 {[%clk 0:00:17]} 42. Bxd5 {[%clk 0:01:18]}  Nxd5 {[%clk 0:00:17]} 43. c4 {[%clk 0:01:16]}  bxc4+ {[%clk 0:00:18]} 44. Kxc4 {[%clk 0:01:17]}  Nf6 {[%clk 0:00:16]} 45. Re3+ {[%clk 0:01:16]}  Kd6 {[%clk 0:00:16]} 46. Ra3 {[%clk 0:01:17]}  Ne4 {[%clk 0:00:15]} 47. Rxa6+ {[%clk 0:01:17]}  Ke5 {[%clk 0:00:16]} 48. Rxg6 {[%clk 0:01:17]}  Nxf2 {[%clk 0:00:16]} 49. a4 {[%clk 0:01:16]}  Nd1 {[%clk 0:00:17]} 50. a5 {[%clk 0:01:16]}  Ne3+ {[%clk 0:00:17]} 51. Kc5 {[%clk 0:01:16]}  Nd5 {[%clk 0:00:17]} 52. a6 {[%clk 0:01:15]}  Ne7 {[%clk 0:00:16]} 53. Rg7 {[%clk 0:01:14]}  Nc8 {[%clk 0:00:15]} 54. a7 {[%clk 0:01:14]}  Nd6 {[%clk 0:00:16]} 55. a8=Q {[%clk 0:01:13]} 1-0


[Site "https://www.chess.com"]

[Event "Titled Tuesday Blitz November 08 Late 2022"]
[White "Pakleza, Zbigniew"]
[Black "Poltorak, Sebastian"]
[WhiteFideId "1119290"]
[BlackFideId "1199498"]
[WhiteElo "2411"]
[BlackElo "2196"]
[Result "1-0"]
[Round "02"]
[TimeControl "180+1"]
[Date "2022.11.09"]
[WhiteClock "0:00:05"]
[BlackClock "0:00:03"]

1. d4 {[%clk 0:03:00]}  Nf6 {[%clk 0:02:58]} 2. Nf3 {[%clk 0:03:01]}  b6 {[%clk 0:02:55]} 3. Bf4 {[%clk 0:03:00]}  Bb7 {[%clk 0:02:55]} 4. e3 {[%clk 0:03:01]}  d6 {[%clk 0:02:52]} 5. h3 {[%clk 0:03:01]}  g6 {[%clk 0:02:51]} 6. Be2 {[%clk 0:03:00]}  Bg7 {[%clk 0:02:51]} 7. O-O {[%clk 0:03:01]}  O-O {[%clk 0:02:52]} 8. Nbd2 {[%clk 0:03:02]}  Nfd7 {[%clk 0:02:52]} 9. Bh2 {[%clk 0:03:01]}  e5 {[%clk 0:02:50]} 10. a4 {[%clk 0:02:53]}  a6 {[%clk 0:02:50]} 11. c3 {[%clk 0:02:52]}  Nc6 {[%clk 0:02:48]} 12. Nc4 {[%clk 0:02:51]}  Qe7 {[%clk 0:02:41]} 13. Qb3 {[%clk 0:02:48]}  Kh8 {[%clk 0:02:38]} 14. Rfd1 {[%clk 0:02:16]}  h6 {[%clk 0:02:31]} 15. a5 {[%clk 0:01:55]}  b5 {[%clk 0:02:30]} 16. Ncd2 {[%clk 0:01:55]}  exd4 {[%clk 0:02:20]} 17. cxd4 {[%clk 0:01:52]}  Nd8 {[%clk 0:01:58]} 18. Rac1 {[%clk 0:01:35]}  c5 {[%clk 0:01:57]} 19. Bf1 {[%clk 0:01:21]}  Re8 {[%clk 0:01:49]} 20. Qa3 {[%clk 0:01:19]}  Rc8 {[%clk 0:01:40]} 21. Nb3 {[%clk 0:00:53]}  Bxf3 {[%clk 0:01:19]} 22. gxf3 {[%clk 0:00:54]}  c4 {[%clk 0:01:19]} 23. Nd2 {[%clk 0:00:54]}  d5 {[%clk 0:01:19]} 24. Qxe7 {[%clk 0:00:51]}  Rxe7 {[%clk 0:01:20]} 25. Ra1 {[%clk 0:00:33]}  Nc6 {[%clk 0:01:19]} 26. h4 {[%clk 0:00:30]}  Nf8 {[%clk 0:00:53]} 27. Bd6 {[%clk 0:00:25]}  Ree8 {[%clk 0:00:49]} 28. Bxf8 {[%clk 0:00:25]}  Bxf8 {[%clk 0:00:49]} 29. f4 {[%clk 0:00:24]}  Bb4 {[%clk 0:00:49]} 30. Bg2 {[%clk 0:00:20]}  Rcd8 {[%clk 0:00:48]} 31. Nf3 {[%clk 0:00:17]}  f6 {[%clk 0:00:46]} 32. h5 {[%clk 0:00:17]}  g5 {[%clk 0:00:42]} 33. fxg5 {[%clk 0:00:18]}  hxg5 {[%clk 0:00:42]} 34. Kh2 {[%clk 0:00:18]}  Nxa5 {[%clk 0:00:37]} 35. Bh3 {[%clk 0:00:17]}  Kg7 {[%clk 0:00:35]} 36. Bf5 {[%clk 0:00:15]}  Kh6 {[%clk 0:00:35]} 37. Bg6 {[%clk 0:00:15]}  Re6 {[%clk 0:00:34]} 38. Kg2 {[%clk 0:00:15]}  Nb3 {[%clk 0:00:34]} 39. Rab1 {[%clk 0:00:11]}  a5 {[%clk 0:00:34]} 40. Nh2 {[%clk 0:00:09]}  Kg7 {[%clk 0:00:16]} 41. Ng4 {[%clk 0:00:09]}  a4 {[%clk 0:00:16]} 42. Bf5 {[%clk 0:00:09]}  Ra6 {[%clk 0:00:16]} 43. h6+ {[%clk 0:00:10]}  Kh8 {[%clk 0:00:16]} 44. Rh1 {[%clk 0:00:09]}  Rf8 {[%clk 0:00:13]} 45. h7 {[%clk 0:00:09]}  a3 {[%clk 0:00:10]} 46. bxa3 {[%clk 0:00:09]}  Rxa3 {[%clk 0:00:11]} 47. Rh6 {[%clk 0:00:08]}  Ra6 {[%clk 0:00:10]} 48. Rbh1 {[%clk 0:00:07]}  Nd2 {[%clk 0:00:06]} 49. Rg6 {[%clk 0:00:07]}  Ne4 {[%clk 0:00:04]} 50. Nh6 {[%clk 0:00:07]}  Ra7 {[%clk 0:00:03]} 51. Rg8+ {[%clk 0:00:05]} 1-0


[Site "https://www.chess.com"]

[Event "Titled Tuesday Blitz November 08 Late 2022"]
[White "Papayan, Oleg"]
[Black "Shankland, Sam"]
[WhiteFideId "4193911"]
[BlackFideId "2004887"]
[WhiteElo "2153"]
[BlackElo "2612"]
[Result "0-1"]
[Round "02"]
[TimeControl "180+1"]
[Date "2022.11.09"]
[WhiteClock "0:00:10"]
[BlackClock "0:01:22"]

1. e4 {[%clk 0:03:00]}  c5 {[%clk 0:02:59]} 2. Nf3 {[%clk 0:03:00]}  d6 {[%clk 0:03:00]} 3. Bb5+ {[%clk 0:03:00]}  Bd7 {[%clk 0:03:00]} 4. Bxd7+ {[%clk 0:03:00]}  Nxd7 {[%clk 0:03:01]} 5. c4 {[%clk 0:02:58]}  Ngf6 {[%clk 0:03:00]} 6. Nc3 {[%clk 0:02:58]}  g6 {[%clk 0:03:00]} 7. d4 {[%clk 0:02:58]}  cxd4 {[%clk 0:03:00]} 8. Nxd4 {[%clk 0:02:59]}  Bg7 {[%clk 0:03:00]} 9. O-O {[%clk 0:03:00]}  O-O {[%clk 0:03:00]} 10. Qe2 {[%clk 0:02:51]}  a6 {[%clk 0:03:00]} 11. Rd1 {[%clk 0:02:51]}  Rc8 {[%clk 0:02:59]} 12. Be3 {[%clk 0:02:46]}  Ne5 {[%clk 0:02:51]} 13. b3 {[%clk 0:02:45]}  b5 {[%clk 0:02:50]} 14. h3 {[%clk 0:02:31]}  bxc4 {[%clk 0:02:49]} 15. f4 {[%clk 0:02:31]}  Ned7 {[%clk 0:02:48]} 16. bxc4 {[%clk 0:02:30]}  e5 {[%clk 0:02:46]} 17. Nf3 {[%clk 0:02:28]}  exf4 {[%clk 0:02:38]} 18. Bxf4 {[%clk 0:02:17]}  Nh5 {[%clk 0:02:38]} 19. Bg5 {[%clk 0:02:06]}  Qa5 {[%clk 0:02:34]} 20. Nd5 {[%clk 0:02:03]}  Rfe8 {[%clk 0:02:26]} 21. Rab1 {[%clk 0:01:59]}  Qc5+ {[%clk 0:02:19]} 22. Kh2 {[%clk 0:01:54]}  Ne5 {[%clk 0:02:10]} 23. Nd2 {[%clk 0:01:29]}  Nxc4 {[%clk 0:01:58]} 24. Nxc4 {[%clk 0:01:28]}  Qxc4 {[%clk 0:01:57]} 25. Qxc4 {[%clk 0:01:13]}  Rxc4 {[%clk 0:01:58]} 26. g4 {[%clk 0:01:13]}  Rc2+ {[%clk 0:01:56]} 27. Rd2 {[%clk 0:01:09]}  Rxd2+ {[%clk 0:01:53]} 28. Bxd2 {[%clk 0:01:10]}  Nf6 {[%clk 0:01:53]} 29. Nxf6+ {[%clk 0:01:07]}  Bxf6 {[%clk 0:01:54]} 30. Rb4 {[%clk 0:01:07]}  d5 {[%clk 0:01:48]} 31. Rb6 {[%clk 0:01:02]}  Be5+ {[%clk 0:01:47]} 32. Kg2 {[%clk 0:01:02]}  dxe4 {[%clk 0:01:46]} 33. Rxa6 {[%clk 0:01:03]}  f5 {[%clk 0:01:42]} 34. gxf5 {[%clk 0:00:50]}  gxf5 {[%clk 0:01:42]} 35. Be3 {[%clk 0:00:38]}  f4 {[%clk 0:01:41]} 36. Bf2 {[%clk 0:00:38]}  f3+ {[%clk 0:01:39]} 37. Kf1 {[%clk 0:00:36]}  Rb8 {[%clk 0:01:34]} 38. Rb6 {[%clk 0:00:24]}  Rc8 {[%clk 0:01:30]} 39. Rb1 {[%clk 0:00:23]}  Bf4 {[%clk 0:01:25]} 40. Re1 {[%clk 0:00:23]}  Rc4 {[%clk 0:01:25]} 41. Be3 {[%clk 0:00:15]}  Bxe3 {[%clk 0:01:24]} 42. Rxe3 {[%clk 0:00:16]}  Kf7 {[%clk 0:01:24]} 43. Kf2 {[%clk 0:00:16]}  Ke6 {[%clk 0:01:24]} 44. Kg3 {[%clk 0:00:16]}  Ke5 {[%clk 0:01:24]} 45. Rb3 {[%clk 0:00:13]}  Rc2 {[%clk 0:01:23]} 46. a4 {[%clk 0:00:10]}  Rg2+ {[%clk 0:01:23]} 47. Kh4 {[%clk 0:00:10]}  f2 {[%clk 0:01:22]} 48. Rb1 {[%clk 0:00:10]}  Rg1 {[%clk 0:01:22]} 0-1


[Site "https://www.chess.com"]

[Event "Titled Tuesday Blitz November 08 Late 2022"]
[White "Paravyan, David"]
[Black "Aguilar, Juan"]
[WhiteFideId "4194985"]
[BlackFideId "3800091"]
[WhiteElo "2546"]
[BlackElo "2409"]
[Result "1-0"]
[Round "02"]
[TimeControl "180+1"]
[Date "2022.11.09"]
[WhiteClock "0:01:19"]
[BlackClock "0:00:18"]

1. e4 {[%clk 0:03:00]}  c5 {[%clk 0:02:59]} 2. Nf3 {[%clk 0:03:01]}  d6 {[%clk 0:03:00]} 3. d4 {[%clk 0:03:01]}  cxd4 {[%clk 0:03:01]} 4. Nxd4 {[%clk 0:03:02]}  Nf6 {[%clk 0:03:01]} 5. Nc3 {[%clk 0:03:03]}  a6 {[%clk 0:03:02]} 6. Bg5 {[%clk 0:03:03]}  e6 {[%clk 0:03:02]} 7. f4 {[%clk 0:03:03]}  h6 {[%clk 0:03:03]} 8. Bxf6 {[%clk 0:03:03]}  Qxf6 {[%clk 0:03:02]} 9. Qd2 {[%clk 0:03:03]}  g5 {[%clk 0:03:01]} 10. f5 {[%clk 0:03:03]}  Nc6 {[%clk 0:02:56]} 11. Nxc6 {[%clk 0:03:03]}  bxc6 {[%clk 0:02:57]} 12. O-O-O {[%clk 0:03:04]}  Rb8 {[%clk 0:02:55]} 13. Bc4 {[%clk 0:03:04]}  Qe5 {[%clk 0:02:48]} 14. Rhf1 {[%clk 0:02:53]}  h5 {[%clk 0:02:30]} 15. Kb1 {[%clk 0:02:52]}  g4 {[%clk 0:02:25]} 16. Bb3 {[%clk 0:02:48]}  a5 {[%clk 0:02:19]} 17. Qf2 {[%clk 0:02:43]}  Rb7 {[%clk 0:01:46]} 18. Rd3 {[%clk 0:02:13]}  Bg7 {[%clk 0:01:19]} 19. Rfd1 {[%clk 0:02:10]}  Rd7 {[%clk 0:01:02]} 20. h3 {[%clk 0:01:32]}  Ba6 {[%clk 0:00:57]} 21. R3d2 {[%clk 0:01:29]}  g3 {[%clk 0:00:46]} 22. Qb6 {[%clk 0:01:27]}  Bb5 {[%clk 0:00:39]} 23. a4 {[%clk 0:01:26]}  Bh6 {[%clk 0:00:35]} 24. axb5 {[%clk 0:01:23]}  Bxd2 {[%clk 0:00:34]} 25. bxc6 {[%clk 0:01:23]}  Rd8 {[%clk 0:00:32]} 26. c7 {[%clk 0:01:23]}  Rc8 {[%clk 0:00:32]} 27. Rxd2 {[%clk 0:01:23]}  d5 {[%clk 0:00:24]} 28. fxe6 {[%clk 0:01:21]}  fxe6 {[%clk 0:00:24]} 29. Nxd5 {[%clk 0:01:18]}  exd5 {[%clk 0:00:23]} 30. Rxd5 {[%clk 0:01:18]}  Qxe4 {[%clk 0:00:20]} 31. Qc6+ {[%clk 0:01:18]}  Kf8 {[%clk 0:00:19]} 32. Qf6+ {[%clk 0:01:18]}  Ke8 {[%clk 0:00:18]} 33. Re5+ {[%clk 0:01:18]}  Qxe5 {[%clk 0:00:18]} 34. Qxe5+ {[%clk 0:01:19]} 1-0


[Site "https://www.chess.com"]

[Event "Titled Tuesday Blitz November 08 Late 2022"]
[White "Pinheiro, Iung Alicio de O."]
[Black "Stoyanov, Tsvetan"]
[WhiteFideId "2104350"]
[BlackFideId "2917173"]
[WhiteElo "2283"]
[BlackElo "2349"]
[Result "1-0"]
[Round "02"]
[TimeControl "180+1"]
[Date "2022.11.09"]
[WhiteClock "0:00:11"]
[BlackClock "0:00:02"]

1. e4 {[%clk 0:02:58]}  c5 {[%clk 0:03:00]} 2. Nf3 {[%clk 0:02:58]}  d6 {[%clk 0:03:01]} 3. Nc3 {[%clk 0:02:56]}  Nf6 {[%clk 0:03:00]} 4. e5 {[%clk 0:02:56]}  dxe5 {[%clk 0:03:00]} 5. Nxe5 {[%clk 0:02:57]}  Nbd7 {[%clk 0:02:59]} 6. d4 {[%clk 0:02:56]}  e6 {[%clk 0:02:46]} 7. Bb5 {[%clk 0:02:54]}  a6 {[%clk 0:02:45]} 8. Bxd7+ {[%clk 0:02:51]}  Bxd7 {[%clk 0:02:46]} 9. Bg5 {[%clk 0:02:43]}  Qc7 {[%clk 0:02:01]} 10. Bxf6 {[%clk 0:02:01]}  gxf6 {[%clk 0:02:00]} 11. Nxd7 {[%clk 0:01:59]}  Qxd7 {[%clk 0:02:00]} 12. d5 {[%clk 0:01:38]}  O-O-O {[%clk 0:01:59]} 13. dxe6 {[%clk 0:01:30]}  Qxe6+ {[%clk 0:01:48]} 14. Qe2 {[%clk 0:01:30]}  Qc6 {[%clk 0:01:49]} 15. O-O {[%clk 0:01:23]}  Bd6 {[%clk 0:01:40]} 16. Rad1 {[%clk 0:01:14]}  Rhg8 {[%clk 0:01:37]} 17. Qe4 {[%clk 0:01:13]}  Qxe4 {[%clk 0:00:47]} 18. Nxe4 {[%clk 0:01:12]}  Be7 {[%clk 0:00:47]} 19. Ng3 {[%clk 0:01:05]}  Rg5 {[%clk 0:00:41]} 20. Rfe1 {[%clk 0:01:01]}  Re5 {[%clk 0:00:29]} 21. Kf1 {[%clk 0:00:58]}  Rxd1 {[%clk 0:00:27]} 22. Rxd1 {[%clk 0:00:57]}  c4 {[%clk 0:00:27]} 23. Rd4 {[%clk 0:00:52]}  b5 {[%clk 0:00:27]} 24. Rh4 {[%clk 0:00:48]}  Kd7 {[%clk 0:00:26]} 25. Rxh7 {[%clk 0:00:48]}  Ke6 {[%clk 0:00:27]} 26. Ne2 {[%clk 0:00:39]}  b4 {[%clk 0:00:19]} 27. Rh4 {[%clk 0:00:37]}  Ra5 {[%clk 0:00:15]} 28. Rxc4 {[%clk 0:00:34]}  Rxa2 {[%clk 0:00:15]} 29. Nf4+ {[%clk 0:00:27]}  Kf5 {[%clk 0:00:13]} 30. b3 {[%clk 0:00:26]}  Bd6 {[%clk 0:00:12]} 31. Nd3 {[%clk 0:00:22]}  a5 {[%clk 0:00:13]} 32. g4+ {[%clk 0:00:20]}  Ke6 {[%clk 0:00:12]} 33. h4 {[%clk 0:00:20]}  Ra1+ {[%clk 0:00:11]} 34. Kg2 {[%clk 0:00:20]}  f5 {[%clk 0:00:10]} 35. g5 {[%clk 0:00:19]}  f6 {[%clk 0:00:10]} 36. g6 {[%clk 0:00:18]}  Bf8 {[%clk 0:00:08]} 37. h5 {[%clk 0:00:16]}  Bh6 {[%clk 0:00:08]} 38. Rc7 {[%clk 0:00:16]}  Ra2 {[%clk 0:00:02]} 39. Rh7 {[%clk 0:00:16]}  Bf8 {[%clk 0:00:01]} 40. h6 {[%clk 0:00:12]}  Rxc2 {[%clk 0:00:01]} 41. g7 {[%clk 0:00:12]}  Bxg7 {[%clk 0:00:02]} 42. Rxg7 {[%clk 0:00:11]}  Rc3 {[%clk 0:00:02]} 43. h7 {[%clk 0:00:11]} 1-0


[Site "https://www.chess.com"]

[Event "Titled Tuesday Blitz November 08 Late 2022"]
[White "Pniaczek, Marek"]
[Black "Harvey, Marcus R"]
[WhiteFideId "21800421"]
[BlackFideId "400092"]
[WhiteElo "2138"]
[BlackElo "2457"]
[Result "0-1"]
[Round "02"]
[TimeControl "180+1"]
[Date "2022.11.09"]
[WhiteClock "0:00:06"]
[BlackClock "0:00:12"]

1. e4 {[%clk 0:03:00]}  e5 {[%clk 0:02:59]} 2. Nf3 {[%clk 0:03:00]}  Nc6 {[%clk 0:03:00]} 3. Bc4 {[%clk 0:03:00]}  Nf6 {[%clk 0:02:59]} 4. d4 {[%clk 0:02:55]}  exd4 {[%clk 0:02:55]} 5. e5 {[%clk 0:02:55]}  d5 {[%clk 0:02:55]} 6. Bb5 {[%clk 0:02:55]}  Ne4 {[%clk 0:02:54]} 7. Nxd4 {[%clk 0:02:55]}  Bd7 {[%clk 0:02:51]} 8. Bxc6 {[%clk 0:02:54]}  bxc6 {[%clk 0:02:51]} 9. O-O {[%clk 0:02:54]}  Bc5 {[%clk 0:02:45]} 10. f3 {[%clk 0:02:52]}  Ng5 {[%clk 0:02:31]} 11. Be3 {[%clk 0:02:49]}  O-O {[%clk 0:02:31]} 12. f4 {[%clk 0:02:47]}  Ne4 {[%clk 0:02:29]} 13. Nd2 {[%clk 0:02:43]}  Bxd4 {[%clk 0:02:10]} 14. Bxd4 {[%clk 0:02:39]}  c5 {[%clk 0:02:10]} 15. Nxe4 {[%clk 0:02:27]}  cxd4 {[%clk 0:02:10]} 16. Nc5 {[%clk 0:02:25]}  Bf5 {[%clk 0:02:09]} 17. Rf2 {[%clk 0:02:01]}  d3 {[%clk 0:02:08]} 18. Nxd3 {[%clk 0:01:48]}  d4 {[%clk 0:02:08]} 19. Qd2 {[%clk 0:01:32]}  Qd5 {[%clk 0:02:01]} 20. b3 {[%clk 0:01:30]}  a5 {[%clk 0:01:59]} 21. Nb2 {[%clk 0:01:26]}  Rfd8 {[%clk 0:01:50]} 22. Rd1 {[%clk 0:01:22]}  g6 {[%clk 0:01:42]} 23. a4 {[%clk 0:01:12]}  Be6 {[%clk 0:01:37]} 24. Nc4 {[%clk 0:01:03]}  Qc5 {[%clk 0:01:33]} 25. Nb2 {[%clk 0:00:52]}  Rd5 {[%clk 0:01:16]} 26. Nd3 {[%clk 0:00:50]}  Qa3 {[%clk 0:01:13]} 27. f5 {[%clk 0:00:39]}  Bxf5 {[%clk 0:01:01]} 28. Rxf5 {[%clk 0:00:39]}  gxf5 {[%clk 0:01:02]} 29. Qg5+ {[%clk 0:00:39]}  Kh8 {[%clk 0:01:00]} 30. Qf6+ {[%clk 0:00:30]}  Kg8 {[%clk 0:01:00]} 31. Nf4 {[%clk 0:00:23]}  Rd7 {[%clk 0:00:42]} 32. Nh5 {[%clk 0:00:17]}  Qf8 {[%clk 0:00:39]} 33. Rd3 {[%clk 0:00:16]}  f4 {[%clk 0:00:35]} 34. Nxf4 {[%clk 0:00:13]}  Qg7 {[%clk 0:00:27]} 35. Rg3 {[%clk 0:00:12]}  Qxg3 {[%clk 0:00:23]} 36. hxg3 {[%clk 0:00:13]}  Rad8 {[%clk 0:00:19]} 37. Nh5 {[%clk 0:00:11]}  Kf8 {[%clk 0:00:19]} 38. Qh8+ {[%clk 0:00:11]}  Ke7 {[%clk 0:00:19]} 39. Qf6+ {[%clk 0:00:11]}  Ke8 {[%clk 0:00:20]} 40. e6 {[%clk 0:00:11]}  fxe6 {[%clk 0:00:20]} 41. Ng7+ {[%clk 0:00:11]}  Rxg7 {[%clk 0:00:19]} 42. Qxg7 {[%clk 0:00:12]}  c5 {[%clk 0:00:18]} 43. Qg8+ {[%clk 0:00:11]}  Ke7 {[%clk 0:00:18]} 44. Qxh7+ {[%clk 0:00:12]}  Kd6 {[%clk 0:00:18]} 45. Qe4 {[%clk 0:00:11]}  e5 {[%clk 0:00:15]} 46. Qb7 {[%clk 0:00:11]}  Rd7 {[%clk 0:00:15]} 47. Qb6+ {[%clk 0:00:11]}  Kd5 {[%clk 0:00:15]} 48. g4 {[%clk 0:00:12]}  e4 {[%clk 0:00:16]} 49. g5 {[%clk 0:00:12]}  e3 {[%clk 0:00:16]} 50. Qb5 {[%clk 0:00:12]}  Re7 {[%clk 0:00:16]} 51. Qc4+ {[%clk 0:00:12]}  Ke5 {[%clk 0:00:17]} 52. g6 {[%clk 0:00:11]}  Kf6 {[%clk 0:00:17]} 53. Kf1 {[%clk 0:00:10]}  Kxg6 {[%clk 0:00:17]} 54. Ke2 {[%clk 0:00:09]}  Re5 {[%clk 0:00:16]} 55. Qa6+ {[%clk 0:00:09]}  Kf5 {[%clk 0:00:16]} 56. Qxa5 {[%clk 0:00:09]}  Ke4 {[%clk 0:00:16]} 57. Qa8+ {[%clk 0:00:08]}  Kf4 {[%clk 0:00:16]} 58. Qf8+ {[%clk 0:00:09]}  Rf5 {[%clk 0:00:14]} 59. Qb8+ {[%clk 0:00:07]}  Ke4 {[%clk 0:00:13]} 60. Qb7+ {[%clk 0:00:07]}  Ke5 {[%clk 0:00:14]} 61. Qc7+ {[%clk 0:00:07]}  Kd5 {[%clk 0:00:14]} 62. Qd7+ {[%clk 0:00:07]}  Ke5 {[%clk 0:00:14]} 63. Qe7+ {[%clk 0:00:07]}  Kd5 {[%clk 0:00:14]} 64. Kd3 {[%clk 0:00:06]}  Rf2 {[%clk 0:00:12]} 65. a5 {[%clk 0:00:06]}  Rd2# {[%clk 0:00:12]} 0-1


[Site "https://www.chess.com"]

[Event "Titled Tuesday Blitz November 08 Late 2022"]
[White "Postnikov, Daniil"]
[Black "Fernandez Guillen, Ernesto J."]
[WhiteFideId "4166329"]
[BlackFideId "3512428"]
[WhiteElo "2552"]
[BlackElo "2798"]
[Result "1-0"]
[Round "02"]
[TimeControl "180+1"]
[Date "2022.11.09"]
[WhiteClock "0:00:12"]
[BlackClock "0:00:04"]

1. e4 {[%clk 0:03:00]}  e5 {[%clk 0:02:59]} 2. f4 {[%clk 0:02:59]}  exf4 {[%clk 0:02:59]} 3. Nf3 {[%clk 0:02:59]}  g5 {[%clk 0:03:00]} 4. h4 {[%clk 0:02:59]}  g4 {[%clk 0:02:58]} 5. Ne5 {[%clk 0:02:58]}  d5 {[%clk 0:02:59]} 6. exd5 {[%clk 0:02:53]}  Qxd5 {[%clk 0:02:59]} 7. d4 {[%clk 0:02:54]}  Qe4+ {[%clk 0:02:53]} 8. Qe2 {[%clk 0:02:53]}  Qxe2+ {[%clk 0:02:52]} 9. Bxe2 {[%clk 0:02:54]}  f3 {[%clk 0:02:34]} 10. gxf3 {[%clk 0:02:54]}  g3 {[%clk 0:02:34]} 11. Nc3 {[%clk 0:02:29]}  Nf6 {[%clk 0:02:33]} 12. Rg1 {[%clk 0:02:17]}  Rg8 {[%clk 0:02:20]} 13. Bg5 {[%clk 0:02:14]}  Be7 {[%clk 0:01:59]} 14. O-O-O {[%clk 0:01:19]}  h6 {[%clk 0:01:40]} 15. Bxh6 {[%clk 0:01:13]}  g2 {[%clk 0:01:13]} 16. Bc4 {[%clk 0:01:10]}  Be6 {[%clk 0:00:57]} 17. d5 {[%clk 0:01:10]}  Bh3 {[%clk 0:00:58]} 18. d6 {[%clk 0:01:10]}  Bxd6 {[%clk 0:00:58]} 19. Bxf7+ {[%clk 0:01:07]}  Ke7 {[%clk 0:00:50]} 20. Bxg8 {[%clk 0:01:06]}  Nxg8 {[%clk 0:00:51]} 21. Bg5+ {[%clk 0:01:04]}  Ke6 {[%clk 0:00:49]} 22. Ng4 {[%clk 0:01:01]}  Nc6 {[%clk 0:00:44]} 23. Ne4 {[%clk 0:00:57]}  Rf8 {[%clk 0:00:41]} 24. Nxd6 {[%clk 0:00:49]}  cxd6 {[%clk 0:00:42]} 25. Nf2 {[%clk 0:00:49]}  Bf5 {[%clk 0:00:34]} 26. Rxg2 {[%clk 0:00:48]}  Ne5 {[%clk 0:00:25]} 27. Ne4 {[%clk 0:00:40]}  Nxf3 {[%clk 0:00:15]} 28. Nxd6 {[%clk 0:00:38]}  Bh7 {[%clk 0:00:12]} 29. Re2+ {[%clk 0:00:36]}  Kd7 {[%clk 0:00:12]} 30. Nxb7+ {[%clk 0:00:28]}  Kc7 {[%clk 0:00:13]} 31. Nc5 {[%clk 0:00:27]}  Rf5 {[%clk 0:00:12]} 32. b4 {[%clk 0:00:21]}  Kc6 {[%clk 0:00:07]} 33. a4 {[%clk 0:00:15]}  Ne5 {[%clk 0:00:04]} 34. Bf4 {[%clk 0:00:11]}  Rxf4 {[%clk 0:00:01]} 35. Rxe5 {[%clk 0:00:12]}  Nf6 {[%clk 0:00:01]} 36. Re6+ {[%clk 0:00:12]}  Kc7 {[%clk 0:00:01]} 37. Rdd6 {[%clk 0:00:11]}  a5 {[%clk 0:00:01]} 38. Rxf6 {[%clk 0:00:11]}  Rc4 {[%clk 0:00:02]} 39. Rc6+ {[%clk 0:00:11]}  Kd8 {[%clk 0:00:02]} 40. Ne6+ {[%clk 0:00:11]}  Ke7 {[%clk 0:00:03]} 41. Rxc4 {[%clk 0:00:11]}  axb4 {[%clk 0:00:03]} 42. Ng5 {[%clk 0:00:12]}  b3 {[%clk 0:00:04]} 43. Nxh7 {[%clk 0:00:12]} 1-0


[Site "https://www.chess.com"]